[Event "Titled Tuesday Blitz July 6 2021"]
[White "Praveen, Kumar C"]
[Black "Colas, Joshua"]
[WhiteFideId "5007372"]
[BlackFideId "2044447"]
[WhiteElo "2236"]
[BlackElo "2347"]
[Result "0-1"]
[Round "01"]
[TimeControl "180+1"]
[Date "2021.07.06"]
[WhiteClock "0:01:14"]
[BlackClock "0:01:30"]

1. d4 {[%clk 0:02:58]}  d5 {[%clk 0:02:57]} 2. c4 {[%clk 0:02:58]}  e6 {[%clk 0:02:57]} 3. Nf3 {[%clk 0:02:59]}  Nf6 {[%clk 0:02:57]} 4. g3 {[%clk 0:03:00]}  dxc4 {[%clk 0:02:55]} 5. Bg2 {[%clk 0:03:00]}  a6 {[%clk 0:02:53]} 6. O-O {[%clk 0:03:00]}  Nc6 {[%clk 0:02:53]} 7. a4 {[%clk 0:02:57]}  Rb8 {[%clk 0:02:52]} 8. Qc2 {[%clk 0:02:55]}  b5 {[%clk 0:02:37]} 9. Rd1 {[%clk 0:02:52]}  Bb7 {[%clk 0:02:33]} 10. Nc3 {[%clk 0:02:45]}  Nb4 {[%clk 0:02:23]} 11. Qd2 {[%clk 0:02:42]}  Be7 {[%clk 0:02:19]} 12. axb5 {[%clk 0:02:41]}  axb5 {[%clk 0:02:19]} 13. Nxb5 {[%clk 0:02:41]}  Bxf3 {[%clk 0:02:20]} 14. Bxf3 {[%clk 0:02:34]}  Rxb5 {[%clk 0:02:16]} 15. Qc3 {[%clk 0:02:11]}  O-O {[%clk 0:02:12]} 16. Qxc4 {[%clk 0:02:10]}  Rb8 {[%clk 0:02:09]} 17. Bf4 {[%clk 0:02:10]}  Nbd5 {[%clk 0:02:09]} 18. Be5 {[%clk 0:02:08]}  Rxb2 {[%clk 0:02:04]} 19. e4 {[%clk 0:02:05]}  Nb6 {[%clk 0:02:04]} 20. Qc3 {[%clk 0:02:00]}  Rb4 {[%clk 0:02:00]} 21. Bxf6 {[%clk 0:01:44]}  gxf6 {[%clk 0:01:57]} 22. e5 {[%clk 0:01:44]}  f5 {[%clk 0:01:55]} 23. d5 {[%clk 0:01:32]}  Nxd5 {[%clk 0:01:53]} 24. Bxd5 {[%clk 0:01:31]}  exd5 {[%clk 0:01:54]} 25. Qf3 {[%clk 0:01:31]}  c6 {[%clk 0:01:42]} 26. Qxf5 {[%clk 0:01:31]}  Qc8 {[%clk 0:01:40]} 27. Qc2 {[%clk 0:01:26]}  Rc4 {[%clk 0:01:38]} 28. Qd2 {[%clk 0:01:25]}  Qf5 {[%clk 0:01:35]} 29. Ra7 {[%clk 0:01:23]}  Rc2 {[%clk 0:01:30]} 30. Qe3 {[%clk 0:01:14]}  Bc5 {[%clk 0:01:30]} 0-1


[Site "https://www.chess.com"]

[Event "Titled Tuesday Blitz July 6 2021"]
[White "Rohde, Michael"]
[Black "Svane, Rasmus"]
[WhiteFideId "2000172"]
[BlackFideId "4657101"]
[WhiteElo "2293"]
[BlackElo "2669"]
[Result "0-1"]
[Round "01"]
[TimeControl "180+1"]
[Date "2021.07.06"]
[WhiteClock "0:00:01"]
[BlackClock "0:00:03"]

1. Nf3 {[%clk 0:02:58]}  d5 {[%clk 0:02:57]} 2. d4 {[%clk 0:02:57]}  Nf6 {[%clk 0:02:56]} 3. Bf4 {[%clk 0:02:55]}  c5 {[%clk 0:02:53]} 4. e3 {[%clk 0:02:53]}  Nc6 {[%clk 0:02:53]} 5. c3 {[%clk 0:02:50]}  Qb6 {[%clk 0:02:50]} 6. Qb3 {[%clk 0:02:34]}  c4 {[%clk 0:02:50]} 7. Qc2 {[%clk 0:02:34]}  Bf5 {[%clk 0:02:50]} 8. Qc1 {[%clk 0:02:34]}  e6 {[%clk 0:02:51]} 9. Nbd2 {[%clk 0:02:31]}  h6 {[%clk 0:02:49]} 10. Be2 {[%clk 0:02:29]}  Be7 {[%clk 0:02:49]} 11. h3 {[%clk 0:02:20]}  O-O {[%clk 0:02:48]} 12. g4 {[%clk 0:02:19]}  Bg6 {[%clk 0:02:43]} 13. Rg1 {[%clk 0:02:10]}  Qd8 {[%clk 0:02:30]} 14. h4 {[%clk 0:02:09]}  b5 {[%clk 0:02:13]} 15. h5 {[%clk 0:02:06]}  Bh7 {[%clk 0:02:09]} 16. g5 {[%clk 0:02:06]}  hxg5 {[%clk 0:02:06]} 17. Nxg5 {[%clk 0:02:06]}  b4 {[%clk 0:01:38]} 18. h6 {[%clk 0:01:54]}  g6 {[%clk 0:01:38]} 19. Ndf3 {[%clk 0:01:30]}  a5 {[%clk 0:01:32]} 20. Ne5 {[%clk 0:01:24]}  Nxe5 {[%clk 0:01:27]} 21. dxe5 {[%clk 0:01:20]}  Nd7 {[%clk 0:01:27]} 22. Qd2 {[%clk 0:00:59]}  Nc5 {[%clk 0:01:18]} 23. Qd4 {[%clk 0:00:42]}  Qc7 {[%clk 0:01:14]} 24. Rd1 {[%clk 0:00:33]}  bxc3 {[%clk 0:00:44]} 25. bxc3 {[%clk 0:00:31]}  Rab8 {[%clk 0:00:44]} 26. Bh2 {[%clk 0:00:24]}  Rb2 {[%clk 0:00:42]} 27. Qg4 {[%clk 0:00:18]}  Rfb8 {[%clk 0:00:36]} 28. Qf4 {[%clk 0:00:14]}  Bxg5 {[%clk 0:00:26]} 29. Rxg5 {[%clk 0:00:13]}  Ne4 {[%clk 0:00:27]} 30. Bf3 {[%clk 0:00:10]}  Rxf2 {[%clk 0:00:18]} 31. Bg1 {[%clk 0:00:10]}  Rxf3 {[%clk 0:00:18]} 32. Qxf3 {[%clk 0:00:09]}  Qe7 {[%clk 0:00:13]} 33. Rg4 {[%clk 0:00:09]}  g5 {[%clk 0:00:11]} 34. Bf2 {[%clk 0:00:06]}  Bf5 {[%clk 0:00:11]} 35. Bh4 {[%clk 0:00:05]}  Bxg4 {[%clk 0:00:10]} 36. Qxg4 {[%clk 0:00:05]}  Kh7 {[%clk 0:00:11]} 37. Kf1 {[%clk 0:00:03]}  Rb2 {[%clk 0:00:11]} 38. Kg1 {[%clk 0:00:03]}  f5 {[%clk 0:00:07]} 39. exf6 {[%clk 0:00:02]}  Qf7 {[%clk 0:00:07]} 40. Rf1 {[%clk 0:00:02]}  gxh4 {[%clk 0:00:06]} 41. Qg7+ {[%clk 0:00:01]}  Qxg7+ {[%clk 0:00:06]} 42. hxg7 {[%clk 0:00:01]}  h3 {[%clk 0:00:03]} 0-1


[Site "https://www.chess.com"]

[Event "Titled Tuesday Blitz July 6 2021"]
[White "Seul, Georg"]
[Black "Yakubboev, Nodirbek"]
[WhiteFideId "4601653"]
[BlackFideId "14203987"]
[WhiteElo "2332"]
[BlackElo "2519"]
[Result "0-1"]
[Round "01"]
[TimeControl "180+1"]
[Date "2021.07.06"]
[WhiteClock "0:00:01"]
[BlackClock "0:00:19"]

1. e4 {[%clk 0:03:00]}  c5 {[%clk 0:02:54]} 2. Nf3 {[%clk 0:03:00]}  d6 {[%clk 0:02:49]} 3. Bc4 {[%clk 0:03:00]}  Nc6 {[%clk 0:02:45]} 4. O-O {[%clk 0:02:56]}  Nf6 {[%clk 0:02:43]} 5. d3 {[%clk 0:02:53]}  g6 {[%clk 0:02:39]} 6. h3 {[%clk 0:02:52]}  Bg7 {[%clk 0:02:39]} 7. Nc3 {[%clk 0:02:52]}  O-O {[%clk 0:02:38]} 8. a3 {[%clk 0:02:52]}  a6 {[%clk 0:02:32]} 9. Be3 {[%clk 0:02:49]}  Nd7 {[%clk 0:02:18]} 10. Ba2 {[%clk 0:02:44]}  Nd4 {[%clk 0:02:16]} 11. Nh2 {[%clk 0:02:32]}  b5 {[%clk 0:02:04]} 12. Ng4 {[%clk 0:02:29]}  Kh8 {[%clk 0:01:52]} 13. Bh6 {[%clk 0:02:21]}  Bxh6 {[%clk 0:01:31]} 14. Nxh6 {[%clk 0:02:19]}  e6 {[%clk 0:01:31]} 15. Ne2 {[%clk 0:01:57]}  Qh4 {[%clk 0:01:17]} 16. Nxd4 {[%clk 0:01:42]}  cxd4 {[%clk 0:01:16]} 17. Ng4 {[%clk 0:01:27]}  f5 {[%clk 0:01:15]} 18. exf5 {[%clk 0:01:26]}  gxf5 {[%clk 0:01:15]} 19. Nh2 {[%clk 0:01:26]}  e5 {[%clk 0:01:12]} 20. Qf3 {[%clk 0:00:56]}  Ra7 {[%clk 0:01:09]} 21. Qg3 {[%clk 0:00:53]}  Qxg3 {[%clk 0:00:48]} 22. fxg3 {[%clk 0:00:53]}  Nf6 {[%clk 0:00:48]} 23. g4 {[%clk 0:00:48]}  fxg4 {[%clk 0:00:47]} 24. Nxg4 {[%clk 0:00:45]}  Bxg4 {[%clk 0:00:45]} 25. hxg4 {[%clk 0:00:45]}  Kg7 {[%clk 0:00:41]} 26. g5 {[%clk 0:00:41]}  Ng4 {[%clk 0:00:41]} 27. Rxf8 {[%clk 0:00:41]}  Kxf8 {[%clk 0:00:42]} 28. Rf1+ {[%clk 0:00:37]}  Kg7 {[%clk 0:00:42]} 29. c3 {[%clk 0:00:22]}  dxc3 {[%clk 0:00:41]} 30. bxc3 {[%clk 0:00:21]}  Kg6 {[%clk 0:00:40]} 31. d4 {[%clk 0:00:20]}  Kxg5 {[%clk 0:00:39]} 32. Be6 {[%clk 0:00:15]}  Ne3 {[%clk 0:00:25]} 33. Rf3 {[%clk 0:00:14]}  Re7 {[%clk 0:00:24]} 34. d5 {[%clk 0:00:12]}  Nc4 {[%clk 0:00:24]} 35. Rg3+ {[%clk 0:00:11]}  Kf4 {[%clk 0:00:24]} 36. Rg4+ {[%clk 0:00:11]}  Ke3 {[%clk 0:00:23]} 37. a4 {[%clk 0:00:10]}  e4 {[%clk 0:00:20]} 38. axb5 {[%clk 0:00:09]}  axb5 {[%clk 0:00:21]} 39. Kf1 {[%clk 0:00:08]}  Ra7 {[%clk 0:00:21]} 40. Rg3+ {[%clk 0:00:06]}  Kd2 {[%clk 0:00:20]} 41. Rg4 {[%clk 0:00:01]}  Ne3+ {[%clk 0:00:19]} 0-1


[Site "https://www.chess.com"]

[Event "Titled Tuesday Blitz July 6 2021"]
[White "Shahade, Gregory"]
[Black "Tsotsonava, Elene"]
[WhiteFideId "2009064"]
[BlackFideId "13615939"]
[WhiteElo "2731"]
[BlackElo "1847"]
[Result "1-0"]
[Round "01"]
[TimeControl "180+1"]
[Date "2021.07.06"]
[WhiteClock "0:00:10"]
[BlackClock "0:00:10"]

1. e4 {[%clk 0:03:00]}  c5 {[%clk 0:03:00]} 2. Nf3 {[%clk 0:03:00]}  e6 {[%clk 0:02:58]} 3. d4 {[%clk 0:03:00]}  cxd4 {[%clk 0:02:59]} 4. Nxd4 {[%clk 0:03:01]}  Nc6 {[%clk 0:02:49]} 5. Nc3 {[%clk 0:03:00]}  Qc7 {[%clk 0:02:46]} 6. Be3 {[%clk 0:03:00]}  a6 {[%clk 0:02:46]} 7. Qf3 {[%clk 0:03:00]}  Nf6 {[%clk 0:02:41]} 8. O-O-O {[%clk 0:02:58]}  Nxd4 {[%clk 0:02:41]} 9. Bxd4 {[%clk 0:02:57]}  e5 {[%clk 0:02:41]} 10. Be3 {[%clk 0:02:55]}  d6 {[%clk 0:02:40]} 11. Qg3 {[%clk 0:02:52]}  Be6 {[%clk 0:02:33]} 12. f3 {[%clk 0:02:49]}  Rc8 {[%clk 0:02:32]} 13. Kb1 {[%clk 0:02:46]}  b5 {[%clk 0:02:32]} 14. Bd3 {[%clk 0:02:46]}  Be7 {[%clk 0:02:30]} 15. Rd2 {[%clk 0:02:26]}  b4 {[%clk 0:02:26]} 16. Ne2 {[%clk 0:02:25]}  Qa5 {[%clk 0:02:24]} 17. Nc1 {[%clk 0:02:21]}  O-O {[%clk 0:02:16]} 18. Rhd1 {[%clk 0:02:04]}  d5 {[%clk 0:02:13]} 19. Qxe5 {[%clk 0:01:57]}  Rfd8 {[%clk 0:02:02]} 20. Nb3 {[%clk 0:01:46]}  Qa4 {[%clk 0:01:58]} 21. Bd4 {[%clk 0:01:39]}  dxe4 {[%clk 0:01:46]} 22. Bxe4 {[%clk 0:01:38]}  Bd6 {[%clk 0:01:26]} 23. Qg5 {[%clk 0:01:34]}  h6 {[%clk 0:01:24]} 24. Qh4 {[%clk 0:01:34]}  Nxe4 {[%clk 0:01:22]} 25. Qxe4 {[%clk 0:01:31]}  Be7 {[%clk 0:00:59]} 26. Be5 {[%clk 0:01:10]}  Rxd2 {[%clk 0:00:53]} 27. Rxd2 {[%clk 0:01:11]}  Qb5 {[%clk 0:00:53]} 28. Rd1 {[%clk 0:00:56]}  a5 {[%clk 0:00:53]} 29. Nd4 {[%clk 0:00:52]}  Qc4 {[%clk 0:00:31]} 30. Nxe6 {[%clk 0:00:50]}  Qxe6 {[%clk 0:00:32]} 31. Qg4 {[%clk 0:00:40]}  Qxg4 {[%clk 0:00:23]} 32. fxg4 {[%clk 0:00:40]}  Rc5 {[%clk 0:00:15]} 33. Bg3 {[%clk 0:00:36]}  Rg5 {[%clk 0:00:14]} 34. h3 {[%clk 0:00:30]}  h5 {[%clk 0:00:12]} 35. Bh4 {[%clk 0:00:21]}  Re5 {[%clk 0:00:13]} 36. Bxe7 {[%clk 0:00:21]}  Rxe7 {[%clk 0:00:13]} 37. gxh5 {[%clk 0:00:21]}  Re2 {[%clk 0:00:14]} 38. b3 {[%clk 0:00:21]}  Rxg2 {[%clk 0:00:14]} 39. Rd5 {[%clk 0:00:21]}  Rg3 {[%clk 0:00:14]} 40. Rxa5 {[%clk 0:00:19]}  Rxh3 {[%clk 0:00:13]} 41. Rb5 {[%clk 0:00:18]}  Rh4 {[%clk 0:00:13]} 42. Kb2 {[%clk 0:00:18]}  Rh3 {[%clk 0:00:11]} 43. Rxb4 {[%clk 0:00:15]}  Rxh5 {[%clk 0:00:11]} 44. a4 {[%clk 0:00:16]}  g5 {[%clk 0:00:11]} 45. Rb5 {[%clk 0:00:16]}  Kg7 {[%clk 0:00:10]} 46. a5 {[%clk 0:00:16]}  Kg6 {[%clk 0:00:10]} 47. a6 {[%clk 0:00:17]}  Rh8 {[%clk 0:00:10]} 48. b4 {[%clk 0:00:10]}  g4 {[%clk 0:00:10]} 49. Rd5 {[%clk 0:00:09]}  Ra8 {[%clk 0:00:07]} 50. b5 {[%clk 0:00:09]}  g3 {[%clk 0:00:07]} 51. Rd3 {[%clk 0:00:09]}  Rb8 {[%clk 0:00:06]} 52. Rxg3+ {[%clk 0:00:09]}  Kf6 {[%clk 0:00:07]} 53. c4 {[%clk 0:00:08]}  Ke5 {[%clk 0:00:07]} 54. a7 {[%clk 0:00:08]}  Ra8 {[%clk 0:00:08]} 55. b6 {[%clk 0:00:09]}  Kd6 {[%clk 0:00:09]} 56. b7 {[%clk 0:00:09]}  Rxa7 {[%clk 0:00:10]} 57. b8=Q+ {[%clk 0:00:10]} 1-0


[Site "https://www.chess.com"]

[Event "Titled Tuesday Blitz July 6 2021"]
[White "Shahinyan, David"]
[Black "Dobre, Claudiu-Cristian"]
[WhiteFideId "13304380"]
[BlackFideId "1211854"]
[WhiteElo "2372"]
[BlackElo "2259"]
[Result "1-0"]
[Round "01"]
[TimeControl "180+1"]
[Date "2021.07.06"]
[WhiteClock "0:00:34"]
[BlackClock "0:00:04"]

1. e4 {[%clk 0:03:00]}  Nc6 {[%clk 0:02:59]} 2. d4 {[%clk 0:02:59]}  d5 {[%clk 0:02:58]} 3. Nc3 {[%clk 0:02:59]}  dxe4 {[%clk 0:02:58]} 4. d5 {[%clk 0:03:00]}  Nb8 {[%clk 0:02:59]} 5. Bf4 {[%clk 0:03:00]}  c6 {[%clk 0:02:32]} 6. dxc6 {[%clk 0:02:58]}  Qxd1+ {[%clk 0:02:32]} 7. Rxd1 {[%clk 0:02:59]}  bxc6 {[%clk 0:02:32]} 8. Nxe4 {[%clk 0:02:08]}  Nf6 {[%clk 0:02:31]} 9. Nxf6+ {[%clk 0:01:56]}  gxf6 {[%clk 0:02:30]} 10. Nf3 {[%clk 0:01:52]}  Ba6 {[%clk 0:02:16]} 11. c4 {[%clk 0:01:41]}  e5 {[%clk 0:02:15]} 12. Be3 {[%clk 0:01:40]}  Bb4+ {[%clk 0:02:05]} 13. Bd2 {[%clk 0:01:41]}  Bxd2+ {[%clk 0:01:58]} 14. Nxd2 {[%clk 0:01:41]}  Nd7 {[%clk 0:01:54]} 15. Ne4 {[%clk 0:01:40]}  Ke7 {[%clk 0:01:55]} 16. Rxd7+ {[%clk 0:01:37]}  Kxd7 {[%clk 0:01:52]} 17. Nc5+ {[%clk 0:01:36]}  Kc7 {[%clk 0:01:51]} 18. Nxa6+ {[%clk 0:01:37]}  Kb6 {[%clk 0:01:51]} 19. Nb4 {[%clk 0:01:29]}  Rhg8 {[%clk 0:01:46]} 20. g3 {[%clk 0:01:27]}  Rad8 {[%clk 0:01:42]} 21. Be2 {[%clk 0:01:25]}  Rd4 {[%clk 0:01:32]} 22. Nc2 {[%clk 0:01:25]}  Rd7 {[%clk 0:01:31]} 23. Ne3 {[%clk 0:01:09]}  Kc5 {[%clk 0:01:15]} 24. Bg4 {[%clk 0:00:55]}  Rb7 {[%clk 0:01:09]} 25. b3 {[%clk 0:00:51]}  Rd8 {[%clk 0:00:46]} 26. Bf5 {[%clk 0:00:51]}  h5 {[%clk 0:00:43]} 27. Ke2 {[%clk 0:00:50]}  Kb4 {[%clk 0:00:42]} 28. Rc1 {[%clk 0:00:38]}  Ka3 {[%clk 0:00:40]} 29. Rc2 {[%clk 0:00:38]}  a5 {[%clk 0:00:33]} 30. h4 {[%clk 0:00:39]}  a4 {[%clk 0:00:33]} 31. bxa4 {[%clk 0:00:39]}  Kxa4 {[%clk 0:00:26]} 32. c5 {[%clk 0:00:38]}  Rdb8 {[%clk 0:00:16]} 33. Be4 {[%clk 0:00:36]}  Kb5 {[%clk 0:00:11]} 34. a4+ {[%clk 0:00:32]}  Kxa4 {[%clk 0:00:09]} 35. Bxc6+ {[%clk 0:00:33]}  Kb3 {[%clk 0:00:06]} 36. Bxb7 {[%clk 0:00:32]}  Rxb7 {[%clk 0:00:06]} 37. c6 {[%clk 0:00:33]}  Rb8 {[%clk 0:00:06]} 38. c7 {[%clk 0:00:33]}  Rc8 {[%clk 0:00:06]} 39. Kd2 {[%clk 0:00:34]}  f5 {[%clk 0:00:04]} 40. Nd5 {[%clk 0:00:34]} 1-0


[Site "https://www.chess.com"]

[Event "Titled Tuesday Blitz July 6 2021"]
[White "Terry, Renato"]
[Black "Yandarbiev, Ruslan"]
[WhiteFideId "3803457"]
[BlackFideId "4115023"]
[WhiteElo "2581"]
[BlackElo "2114"]
[Result "1-0"]
[Round "01"]
[TimeControl "180+1"]
[Date "2021.07.06"]
[WhiteClock "0:01:03"]
[BlackClock "0:01:33"]

1. e4 {[%clk 0:02:54]}  c5 {[%clk 0:02:59]} 2. Nf3 {[%clk 0:02:54]}  d6 {[%clk 0:03:00]} 3. Bb5+ {[%clk 0:02:54]}  Nd7 {[%clk 0:03:00]} 4. d4 {[%clk 0:02:54]}  cxd4 {[%clk 0:03:00]} 5. Qxd4 {[%clk 0:02:55]}  e5 {[%clk 0:03:00]} 6. Qd3 {[%clk 0:02:53]}  Nf6 {[%clk 0:03:01]} 7. Bg5 {[%clk 0:02:52]}  a6 {[%clk 0:02:56]} 8. Bxd7+ {[%clk 0:02:52]}  Bxd7 {[%clk 0:02:55]} 9. Nc3 {[%clk 0:02:51]}  Be6 {[%clk 0:02:56]} 10. O-O-O {[%clk 0:02:46]}  Be7 {[%clk 0:02:56]} 11. Bxf6 {[%clk 0:02:46]}  Bxf6 {[%clk 0:02:56]} 12. Qxd6 {[%clk 0:02:45]}  Qxd6 {[%clk 0:02:57]} 13. Rxd6 {[%clk 0:02:45]}  Ke7 {[%clk 0:02:57]} 14. Rb6 {[%clk 0:02:44]}  Rab8 {[%clk 0:02:55]} 15. Rd1 {[%clk 0:02:42]}  Rhc8 {[%clk 0:02:54]} 16. Nd5+ {[%clk 0:02:41]}  Bxd5 {[%clk 0:02:55]} 17. Rxd5 {[%clk 0:02:42]}  Rc6 {[%clk 0:02:51]} 18. Rxc6 {[%clk 0:02:39]}  bxc6 {[%clk 0:02:52]} 19. Ra5 {[%clk 0:02:39]}  Kd6 {[%clk 0:02:42]} 20. Rxa6 {[%clk 0:02:38]}  Rb4 {[%clk 0:02:42]} 21. b3 {[%clk 0:01:38]}  Rxe4 {[%clk 0:02:41]} 22. Kd1 {[%clk 0:01:38]}  Rf4 {[%clk 0:02:40]} 23. Ke2 {[%clk 0:01:34]}  e4 {[%clk 0:02:40]} 24. Nd2 {[%clk 0:01:34]}  Bd4 {[%clk 0:02:38]} 25. f3 {[%clk 0:01:34]}  exf3+ {[%clk 0:02:32]} 26. Nxf3 {[%clk 0:01:35]}  Bf6 {[%clk 0:02:28]} 27. Ra7 {[%clk 0:01:27]}  Bb2 {[%clk 0:02:17]} 28. a4 {[%clk 0:01:24]}  Kc5 {[%clk 0:02:15]} 29. g3 {[%clk 0:01:17]}  Re4+ {[%clk 0:02:12]} 30. Kd3 {[%clk 0:01:16]}  f5 {[%clk 0:02:13]} 31. Ra5+ {[%clk 0:01:13]}  Kd6 {[%clk 0:02:06]} 32. Rxf5 {[%clk 0:01:14]}  Rg4 {[%clk 0:01:58]} 33. a5 {[%clk 0:01:06]}  Kc7 {[%clk 0:01:47]} 34. Rf7+ {[%clk 0:01:06]}  Kb8 {[%clk 0:01:48]} 35. c3 {[%clk 0:01:04]}  c5 {[%clk 0:01:37]} 36. Ne5 {[%clk 0:01:02]}  Rg5 {[%clk 0:01:33]} 37. Nc6+ {[%clk 0:01:02]}  Kc8 {[%clk 0:01:33]} 38. a6 {[%clk 0:01:03]} 1-0


[Site "https://www.chess.com"]

[Event "Titled Tuesday Blitz July 6 2021"]
[White "Travadon, Loic"]
[Black "Costachi, Mihnea"]
[WhiteFideId "26092131"]
[BlackFideId "1217518"]
[WhiteElo "2095"]
[BlackElo "2482"]
[Result "1-0"]
[Round "01"]
[TimeControl "180+1"]
[Date "2021.07.06"]
[WhiteClock "0:00:37"]
[BlackClock "0:00:13"]

1. Nf3 {[%clk 0:03:00]}  g6 {[%clk 0:02:49]} 2. d4 {[%clk 0:02:59]}  Nf6 {[%clk 0:02:31]} 3. c4 {[%clk 0:02:59]}  Bg7 {[%clk 0:02:30]} 4. Nc3 {[%clk 0:02:59]}  O-O {[%clk 0:02:28]} 5. e4 {[%clk 0:02:59]}  d6 {[%clk 0:02:29]} 6. h3 {[%clk 0:02:58]}  Na6 {[%clk 0:02:29]} 7. Be3 {[%clk 0:02:57]}  e5 {[%clk 0:02:28]} 8. d5 {[%clk 0:02:57]}  Nc5 {[%clk 0:02:28]} 9. Nd2 {[%clk 0:02:57]}  a5 {[%clk 0:02:28]} 10. g4 {[%clk 0:02:57]}  Nfd7 {[%clk 0:02:27]} 11. Qc2 {[%clk 0:02:53]}  Nb6 {[%clk 0:02:27]} 12. O-O-O {[%clk 0:02:47]}  c6 {[%clk 0:02:27]} 13. f3 {[%clk 0:02:39]}  cxd5 {[%clk 0:02:26]} 14. Bxc5 {[%clk 0:02:37]}  dxc5 {[%clk 0:02:24]} 15. Nxd5 {[%clk 0:02:37]}  Nxd5 {[%clk 0:02:24]} 16. cxd5 {[%clk 0:02:38]}  Bd7 {[%clk 0:02:24]} 17. a4 {[%clk 0:02:33]}  Bh6 {[%clk 0:02:19]} 18. Kb1 {[%clk 0:02:32]}  Bxd2 {[%clk 0:02:19]} 19. Rxd2 {[%clk 0:02:31]}  Qb6 {[%clk 0:02:17]} 20. Bb5 {[%clk 0:02:22]}  Bxb5 {[%clk 0:02:16]} 21. Qb3 {[%clk 0:02:22]}  Qf6 {[%clk 0:02:14]} 22. axb5 {[%clk 0:02:20]}  a4 {[%clk 0:02:15]} 23. Qe3 {[%clk 0:02:18]}  b6 {[%clk 0:02:11]} 24. h4 {[%clk 0:02:17]}  Ra5 {[%clk 0:02:11]} 25. Qe2 {[%clk 0:02:15]}  a3 {[%clk 0:02:09]} 26. b3 {[%clk 0:02:09]}  Qd6 {[%clk 0:02:07]} 27. Ka2 {[%clk 0:02:07]}  Qd7 {[%clk 0:02:07]} 28. Rhd1 {[%clk 0:02:03]}  Rxb5 {[%clk 0:02:05]} 29. d6 {[%clk 0:02:02]}  Ra5 {[%clk 0:02:04]} 30. h5 {[%clk 0:02:00]}  g5 {[%clk 0:02:03]} 31. Qe3 {[%clk 0:01:56]}  f6 {[%clk 0:02:02]} 32. Qc3 {[%clk 0:01:56]}  Rd8 {[%clk 0:01:59]} 33. Qc4+ {[%clk 0:01:55]}  Qf7 {[%clk 0:02:00]} 34. Rd5 {[%clk 0:01:53]}  Rd7 {[%clk 0:01:55]} 35. b4 {[%clk 0:01:50]}  cxb4 {[%clk 0:01:54]} 36. Qxb4 {[%clk 0:01:43]}  Rxd5 {[%clk 0:01:51]} 37. Rxd5 {[%clk 0:01:42]}  Rb7 {[%clk 0:01:48]} 38. h6 {[%clk 0:01:41]}  Qd7 {[%clk 0:01:47]} 39. Qc4 {[%clk 0:01:40]}  Kf8 {[%clk 0:01:43]} 40. Kxa3 {[%clk 0:01:31]}  b5 {[%clk 0:01:42]} 41. Qc5 {[%clk 0:01:27]}  b4+ {[%clk 0:01:42]} 42. Kb2 {[%clk 0:01:26]}  b3 {[%clk 0:01:42]} 43. Rd2 {[%clk 0:01:21]}  Ra7 {[%clk 0:01:33]} 44. Kxb3 {[%clk 0:01:05]}  Qa4+ {[%clk 0:01:23]} 45. Kc3 {[%clk 0:01:05]}  Qa1+ {[%clk 0:01:17]} 46. Rb2 {[%clk 0:01:05]}  Qe1+ {[%clk 0:00:59]} 47. Kc4 {[%clk 0:00:50]}  Qc1+ {[%clk 0:00:39]} 48. Kd5 {[%clk 0:00:47]}  Qxb2 {[%clk 0:00:30]} 49. Qxa7 {[%clk 0:00:47]}  Qb3+ {[%clk 0:00:26]} 50. Kc6 {[%clk 0:00:46]}  Qc4+ {[%clk 0:00:27]} 51. Qc5 {[%clk 0:00:44]}  Qa6+ {[%clk 0:00:24]} 52. Kc7 {[%clk 0:00:44]}  Kf7 {[%clk 0:00:18]} 53. d7 {[%clk 0:00:43]}  Kg6 {[%clk 0:00:18]} 54. d8=Q {[%clk 0:00:43]}  Qe6 {[%clk 0:00:15]} 55. Qcd5 {[%clk 0:00:37]}  Qa6 {[%clk 0:00:12]} 56. Q5g8+ {[%clk 0:00:36]}  Kxh6 {[%clk 0:00:13]} 57. Qdf8# {[%clk 0:00:37]} 1-0


[Site "https://www.chess.com"]